lending/lending_fUSD_20240507
["ID","MTS","AMOUNT","RATE_DAILY","PERIOD"]
[326568032,1715112633835,-5262.86149055,0.00019176,2]
[326568033,1715112633845,-5277.37481561,0.00019176,2]
[326568034,1715112633858,-217.57301402,0.00019176,2]
[326568035,1715112633868,-170.42698594,0.00019176,2]
[326568036,1715112633879,-767.91248964,0.00019176,2]
[326568037,1715112633889,-4734.08067195,0.00019176,2]
[326568038,1715112633898,-317.4316254,0.00019176,2]
[326568039,1715112633908,-427.5900503,0.00019177,2]
[326568040,1715112633917,-1000.0,0.00019177,2]
[326568041,1715112633927,-16000.0,0.00019177,2]
[326568042,1715112633937,-179.93576879,0.00019178,2]
[326568043,1715112633947,-547.73087551,0.00019178,2]
[326568044,1715112633957,-298.53572696,0.00019178,2]
[326568045,1715112633967,-721.77,0.00019178,2]
[326568046,1715112633976,-500.0,0.00019178,2]
[326568047,1715112633986,-500.0,0.00019178,2]
[326568048,1715112633997,-500.0,0.00019178,2]
[326568049,1715112634006,-500.0,0.00019178,2]
[326568050,1715112634016,-500.0,0.00019178,2]
[326568051,1715112634025,-500.0,0.00019178,2]
[326568052,1715112634035,-243.51306152,0.00019178,2]
[326568053,1715112634044,-500.0,0.00019178,2]
[326568054,1715112634054,-500.0,0.00019178,2]
[326568055,1715112634064,-500.0,0.00019178,2]
[326568056,1715112634073,-500.0,0.00019178,2]
[326568057,1715112634083,-500.0,0.00019178,2]
[326568058,1715112634093,-500.0,0.00019178,2]
[326568059,1715112634105,-500.0,0.00019178,2]
[326568060,1715112634116,-500.0,0.00019178,2]
[326568061,1715112634126,-500.0,0.00019178,2]
[326568062,1715112634136,-500.0,0.00019178,2]
[326568063,1715112634145,-500.0,0.00019178,2]
[326568064,1715112634155,-500.0,0.00019178,2]
[326568065,1715112634165,-500.0,0.00019178,2]
[326568066,1715112634175,-500.0,0.00019178,2]
[326568067,1715112634186,-500.0,0.00019178,2]
[326568068,1715112634195,-518.2,0.00019178,2]
[326568069,1715112634205,-500.0,0.00019178,2]
[326568070,1715112634215,-500.0,0.00019178,2]
[326568071,1715112634224,-500.0,0.00019178,2]
[326568072,1715112634234,-500.0,0.00019178,2]
[326568073,1715112634244,-500.0,0.00019178,2]
[326568074,1715112634254,-500.0,0.00019178,2]
[326568075,1715112634264,-500.0,0.00019178,2]
[326568076,1715112634274,-500.0,0.00019178,2]
[326568077,1715112634284,-500.0,0.00019178,2]
[326568078,1715112634294,-500.0,0.00019178,2]
[326568079,1715112634303,-500.0,0.00019178,2]
[326568080,1715112634313,-500.0,0.00019178,2]
[326568081,1715112634324,-500.0,0.00019178,2]
[326568082,1715112634334,-500.0,0.00019178,2]
[326568083,1715112634344,-500.0,0.00019178,2]
[326568084,1715112634354,-500.0,0.00019178,2]
[326568085,1715112634363,-500.0,0.00019178,2]
[326568086,1715112634373,-500.0,0.00019178,2]
[326568087,1715112634383,-500.0,0.00019178,2]
[326568088,1715112634392,-500.0,0.00019178,2]
[326568089,1715112634402,-500.0,0.00019178,2]
[326568090,1715112634411,-500.0,0.00019178,2]
[326568091,1715112634421,-500.0,0.00019178,2]
[326568092,1715112634633,-583.94,0.00019178,2]
[326568093,1715112634643,-515.38,0.00019178,2]
[326568094,1715112634653,-230.62575083,0.00019178,2]
[326568095,1715112634663,-500.0,0.00019178,2]
[326568096,1715112634672,-500.0,0.00019178,2]
[326568097,1715112634685,-500.0,0.00019178,2]
[326568098,1715112634695,-518.7312148,0.00019178,2]
[326568099,1715112634706,-500.0,0.00019178,2]
[326568100,1715112634715,-500.0,0.00019178,2]
[326568101,1715112634726,-500.0,0.00019178,2]
[326568102,1715112634736,-500.0,0.00019178,2]
[326568103,1715112634748,-500.0,0.00019178,2]
[326568104,1715112634759,-500.0,0.00019178,2]
[326568105,1715112634769,-500.0,0.00019178,2]
[326568106,1715112634780,-500.0,0.00019178,2]
[326568107,1715112634789,-500.0,0.00019178,2]
[326568108,1715112634799,-500.0,0.00019178,2]
[326568109,1715112634810,-500.0,0.00019178,2]
[326568110,1715112634820,-500.0,0.00019178,2]
[326568111,1715112634830,-545.16,0.00019178,2]
[326568112,1715112634839,-500.0,0.00019178,2]
[326568113,1715112634849,-500.0,0.00019178,2]
[326568114,1715112634860,-500.0,0.00019178,2]
[326568115,1715112634870,-500.0,0.00019178,2]
[326568116,1715112634880,-500.0,0.00019178,2]
[326568117,1715112634889,-500.0,0.00019178,2]
[326568118,1715112634900,-500.0,0.00019178,2]
[326568119,1715112634910,-396.02233447,0.00019178,2]
[326568120,1715112634920,-500.0,0.00019178,2]
[326568121,1715112634929,-500.0,0.00019178,2]
[326568122,1715112634939,-500.0,0.00019178,2]
[326568123,1715112634948,-500.0,0.00019178,2]
[326568124,1715112634958,-500.0,0.00019178,2]
[326568125,1715112634968,-157.74033811,0.00019178,2]
[326568126,1715112634978,-591.55,0.00019178,2]
[326568127,1715112634987,-500.0,0.00019178,2]
[326568128,1715112634998,-500.0,0.00019178,2]
[326568129,1715112635008,-500.0,0.00019178,2]
[326568130,1715112635017,-500.0,0.00019178,2]
[326568131,1715112635028,-500.0,0.00019178,2]
[326568132,1715112635038,-500.0,0.00019178,2]
[326568133,1715112635050,-500.0,0.00019178,2]
[326568134,1715112635059,-500.0,0.00019178,2]
[326568135,1715112635069,-500.0,0.00019178,2]
[326568136,1715112635079,-553.89,0.00019178,2]
[326568137,1715112635089,-500.0,0.00019178,2]
[326568138,1715112635103,-500.0,0.00019178,2]
[326568139,1715112635113,-500.0,0.00019178,2]
[326568140,1715112635122,-500.0,0.00019178,2]
[326568141,1715112635132,-500.0,0.00019178,2]
[326568142,1715112635142,-564.56,0.00019178,2]
[326568143,1715112635153,-500.0,0.00019178,2]
[326568144,1715112635163,-500.0,0.00019178,2]
[326568145,1715112635173,-693.75,0.00019178,2]
[326568146,1715112635183,-500.0,0.00019178,2]
[326568147,1715112635192,-500.0,0.00019178,2]
[326568148,1715112635202,-500.0,0.00019178,2]
[326568149,1715112635212,-322.22,0.00019178,2]
[326568150,1715112635222,-538.03,0.00019178,2]
[326568151,1715112635231,-500.0,0.00019178,2]
[326568152,1715112635242,-500.0,0.00019178,2]
[326568153,1715112635252,-500.0,0.00019178,2]
[326568154,1715112635262,-500.0,0.00019178,2]
[326568155,1715112635271,-592.34,0.00019178,2]
[326568156,1715112635281,-500.0,0.00019178,2]
[326568157,1715112635291,-500.0,0.00019178,2]
[326568158,1715112635301,-547.6,0.00019178,2]
[326568159,1715112635310,-545.86,0.00019178,2]
[326568160,1715112635320,-500.0,0.00019178,2]
[326568161,1715112635329,-500.0,0.00019178,2]
[326568162,1715112635339,-500.0,0.00019178,2]
[326568163,1715112635349,-500.0,0.00019178,2]
[326568164,1715112635359,-500.0,0.00019178,2]
[326568165,1715112635368,-500.0,0.00019178,2]
[326568166,1715112635378,-500.0,0.00019178,2]
[326568167,1715112635388,-500.0,0.00019178,2]
[326568168,1715112635397,-500.0,0.00019178,2]
[326568169,1715112635407,-581.29,0.00019178,2]
[326568170,1715112635417,-520.45,0.00019178,2]
[326568171,1715112635428,-500.0,0.00019178,2]
[326568172,1715112635438,-500.0,0.00019178,2]
[326568173,1715112635447,-500.0,0.00019178,2]
[326568174,1715112635457,-500.0,0.00019178,2]
[326568175,1715112635467,-653.99,0.00019178,2]
[326568176,1715112635476,-500.0,0.00019178,2]
[326568177,1715112635486,-640.88,0.00019178,2]
[326568178,1715112635495,-500.0,0.00019178,2]
[326568179,1715112635504,-500.0,0.00019178,2]
[326568180,1715112635514,-500.0,0.00019178,2]
[326568181,1715112635523,-524.91,0.00019178,2]
[326568182,1715112635533,-500.0,0.00019178,2]
[326568183,1715112635543,-500.0,0.00019178,2]
[326568184,1715112635552,-500.0,0.00019178,2]
[326568185,1715112635561,-500.0,0.00019178,2]
[326568186,1715112635571,-566.66,0.00019178,2]
[326568187,1715112635581,-500.0,0.00019178,2]
[326568188,1715112635591,-500.0,0.00019178,2]
[326568189,1715112635601,-500.0,0.00019178,2]
[326568190,1715112635610,-550.61,0.00019178,2]
[326568191,1715112635620,-500.0,0.00019178,2]
[326568192,1715112635630,-500.0,0.00019178,2]
[326568193,1715112635641,-500.0,0.00019178,2]
[326568194,1715112635651,-500.0,0.00019178,2]
[326568195,1715112635661,-500.0,0.00019178,2]
[326568196,1715112635671,-500.0,0.00019178,2]
[326568197,1715112635684,-500.0,0.00019178,2]
[326568198,1715112635694,-500.0,0.00019178,2]
[326568199,1715112635704,-500.0,0.00019178,2]
[326568200,1715112635714,-500.0,0.00019178,2]
[326568201,1715112635726,-500.0,0.00019178,2]
[326568202,1715112635735,-500.0,0.00019178,2]
[326568203,1715112635746,-500.0,0.00019178,2]
[326568204,1715112635757,-746.34,0.00019178,2]
[326568205,1715112635769,-759.28,0.00019178,2]
[326568206,1715112635780,-526.64,0.00019178,2]
[326568207,1715112635790,-500.0,0.00019178,2]
[326568208,1715112635800,-518.71,0.00019178,2]
[326568209,1715112635810,-500.0,0.00019178,2]
[326568210,1715112635819,-289.17400226,0.00019178,2]
[326568211,1715112635829,-500.0,0.00019178,2]
[326568212,1715112635838,-500.0,0.00019178,2]
[326568213,1715112635848,-500.0,0.00019178,2]
[326568214,1715112635860,-500.0,0.00019178,2]
[326568215,1715112635870,-500.0,0.00019178,2]
[326568216,1715112635880,-500.0,0.00019178,2]
[326568217,1715112635889,-574.9,0.00019178,2]
[326568218,1715112635899,-500.0,0.00019178,2]
[326568219,1715112635909,-500.0,0.00019178,2]
[326568220,1715112635919,-500.0,0.00019178,2]
[326568221,1715112635929,-500.0,0.00019178,2]
[326568222,1715112635938,-500.0,0.00019178,2]
[326568223,1715112635948,-500.0,0.00019178,2]
[326568224,1715112635958,-500.0,0.00019178,2]
[326568225,1715112635967,-500.0,0.00019178,2]
[326568226,1715112635977,-500.0,0.00019178,2]
[326568227,1715112635987,-500.0,0.00019178,2]
[326568228,1715112635997,-500.0,0.00019178,2]
[326568229,1715112636006,-655.12,0.00019178,2]
[326568230,1715112636016,-520.94,0.00019178,2]
[326568231,1715112636026,-793.41043,0.00019178,2]
[326568232,1715112636035,-500.0,0.00019178,2]
[326568233,1715112636045,-500.0,0.00019178,2]
[326568234,1715112636055,-500.0,0.00019178,2]
[326568235,1715112636065,-500.0,0.00019178,2]
[326568236,1715112636075,-500.0,0.00019178,2]
[326568237,1715112636085,-500.0,0.00019178,2]
[326568238,1715112636095,-8535.41,0.00019178,2]
[326568239,1715112636108,-500.0,0.00019178,2]
[326568240,1715112636118,-551.21,0.00019178,2]
[326568241,1715112636128,-500.0,0.00019178,2]
[326568242,1715112636138,-500.0,0.00019178,2]
[326568243,1715112636148,-500.0,0.00019178,2]
[326568244,1715112636157,-635.46,0.00019178,2]
[326568245,1715112636167,-500.0,0.00019178,2]
[326568246,1715112636177,-500.0,0.00019178,2]
[326568247,1715112636187,-817.37,0.00019178,2]
[326568248,1715112636197,-500.0,0.00019178,2]
[326568249,1715112636207,-500.0,0.00019178,2]
[326568250,1715112636216,-500.0,0.00019178,2]
[326568251,1715112636226,-679.34,0.00019178,2]
[326568252,1715112636236,-2319.65,0.00019178,2]
[326568253,1715112636246,-741.95,0.00019178,2]
[326568254,1715112636256,-538.91,0.00019178,2]
[326568255,1715112636265,-500.0,0.00019178,2]
[326568256,1715112636275,-500.0,0.00019178,2]
[326568257,1715112636285,-500.0,0.00019178,2]
[326568258,1715112636295,-742.73,0.00019178,2]
[326568259,1715112636305,-500.0,0.00019178,2]
[326568260,1715112636315,-1499.62,0.00019178,2]
[326568261,1715112636325,-500.0,0.00019178,2]
[326568262,1715112636335,-596.87,0.00019178,2]
[326568263,1715112636345,-500.0,0.00019178,2]
[326568264,1715112636356,-563.45,0.00019178,2]
[326568265,1715112636366,-335.26815889,0.00019178,2]
[326568266,1715112636376,-500.0,0.00019178,2]
[326568267,1715112636386,-500.0,0.00019178,2]
[326568268,1715112636396,-510.154485,0.00019178,2]
[326568269,1715112636406,-500.0,0.00019178,2]
[326568270,1715112636415,-500.0,0.00019178,2]
[326568271,1715112636424,-500.0,0.00019178,2]
[326568272,1715112636434,-500.0,0.00019178,2]
[326568273,1715112636443,-1859.16,0.00019178,2]
[326568274,1715112636453,-500.0,0.00019178,2]
[326568275,1715112636462,-634.64,0.00019178,2]
[326568276,1715112636472,-500.0,0.00019178,2]
[326568277,1715112636482,-1721.19,0.00019178,2]
[326568278,1715112636493,-500.0,0.00019178,2]
[326568279,1715112636502,-500.0,0.00019178,2]
[326568280,1715112636511,-500.0,0.00019178,2]
[326568281,1715112636522,-500.0,0.00019178,2]
[326568282,1715112636531,-872.3,0.00019178,2]
[326568283,1715112636541,-500.0,0.00019178,2]
[326568284,1715112636551,-500.0,0.00019178,2]
[326568285,1715112636561,-750.53,0.00019178,2]
[326568286,1715112636571,-1529.05,0.00019178,2]
[326568287,1715112636580,-500.0,0.00019178,2]
[326568288,1715112636590,-500.0,0.00019178,2]
[326568289,1715112636600,-6040.75,0.00019178,2]
[326568290,1715112636609,-645.71,0.00019178,2]
[326568291,1715112636619,-4503.0,0.00019178,2]
[326568292,1715112636629,-525.81,0.00019178,2]
[326568293,1715112636639,-694.35,0.00019178,2]
[326568294,1715112636649,-500.0,0.00019178,2]
[326568295,1715112636659,-500.0,0.00019178,2]
[326568296,1715112636669,-500.0,0.00019178,2]
[326568297,1715112636679,-500.0,0.00019178,2]
[326568298,1715112636692,-930.74,0.00019178,2]
[326568299,1715112636702,-500.0,0.00019178,2]
[326568300,1715112636712,-366.15585528,0.00019178,2]
[326568301,1715112636722,-1168.1,0.00019178,2]
[326568302,1715112636732,-609.75,0.00019178,2]
[326568303,1715112636743,-534.38,0.00019178,2]
[326568304,1715112636752,-588.75,0.00019178,2]
[326568305,1715112636763,-500.0,0.00019178,2]
[326568306,1715112636775,-500.0,0.00019178,2]
[326568307,1715112636785,-500.0,0.00019178,2]
[326568308,1715112636796,-730.48,0.00019178,2]
[326568309,1715112636805,-1340.08,0.00019178,2]
[326568310,1715112636815,-2009.72,0.00019178,2]
[326568311,1715112636825,-500.0,0.00019178,2]
[326568312,1715112636834,-1089.23,0.00019178,2]
[326568313,1715112636844,-500.0,0.00019178,2]
[326568314,1715112636854,-500.0,0.00019178,2]
[326568315,1715112636864,-500.0,0.00019178,2]
[326568316,1715112636874,-500.0,0.00019178,2]
[326568317,1715112636884,-993.66,0.00019178,2]
[326568318,1715112636894,-500.0,0.00019178,2]
[326568319,1715112636904,-500.0,0.00019178,2]
[326568320,1715112636914,-527.74,0.00019178,2]
[326568321,1715112636924,-500.0,0.00019178,2]
[326568322,1715112636934,-11756.49,0.00019178,2]
[326568323,1715112636944,-3722.54,0.00019178,2]
[326568324,1715112636955,-500.0,0.00019178,2]
[326568325,1715112636965,-667.51,0.00019178,2]
[326568326,1715112636975,-500.0,0.00019178,2]
[326568327,1715112636984,-500.0,0.00019178,2]
[326568328,1715112636995,-774.83,0.00019178,2]
[326568329,1715112637005,-500.0,0.00019178,2]
[326568330,1715112637016,-1205.55,0.00019178,2]
[326568331,1715112637027,-934.07,0.00019178,2]
[326568332,1715112637037,-500.0,0.00019178,2]
[326568333,1715112637047,-1195.88,0.00019178,2]
[326568334,1715112637058,-748.59,0.00019178,2]
[326568335,1715112637068,-500.0,0.00019178,2]
[326568336,1715112637078,-500.0,0.00019178,2]
[326568337,1715112637089,-2150.59,0.00019178,2]
[326568338,1715112637101,-611.65,0.00019178,2]
[326568339,1715112637112,-500.0,0.00019178,2]
[326568340,1715112637122,-500.0,0.00019178,2]
[326568341,1715112637133,-866.75,0.00019178,2]
[326568342,1715112637143,-1537.83,0.00019178,2]
[326568343,1715112637153,-500.0,0.00019178,2]
[326568344,1715112637163,-500.0,0.00019178,2]
[326568345,1715112637173,-646.73,0.00019178,2]
[326568346,1715112637183,-500.0,0.00019178,2]
[326568347,1715112637193,-1376.28,0.00019178,2]
[326568348,1715112637203,-500.0,0.00019178,2]
[326568349,1715112637213,-500.0,0.00019178,2]
[326568350,1715112637223,-452.88531817,0.00019178,2]
[326568351,1715112637233,-500.0,0.00019178,2]
[326568352,1715112637243,-500.0,0.00019178,2]
[326568353,1715112637253,-5743.86,0.00019178,2]
[326568354,1715112637263,-500.0,0.00019178,2]
[326568355,1715112637274,-2279.88,0.00019178,2]
[326568356,1715112637283,-500.0,0.00019178,2]
[326568357,1715112637293,-847.41,0.00019178,2]
[326568358,1715112637303,-612.85,0.00019178,2]
[326568359,1715112637313,-500.0,0.00019178,2]
[326568360,1715112637324,-896.21,0.00019178,2]
[326568361,1715112637334,-500.0,0.00019178,2]
[326568362,1715112637344,-500.0,0.00019178,2]
[326568363,1715112637354,-589.41,0.00019178,2]
[326568364,1715112637363,-662.75,0.00019178,2]
[326568365,1715112637374,-500.0,0.00019178,2]
[326568366,1715112637384,-788.25,0.00019178,2]
[326568367,1715112637394,-500.0,0.00019178,2]
[326568368,1715112637404,-646.27,0.00019178,2]
[326568369,1715112637414,-693.48,0.00019178,2]
[326568370,1715112637424,-693.48,0.00019178,2]
[326568371,1715112637434,-500.0,0.00019178,2]
[326568372,1715112637444,-693.48,0.00019178,2]
[326568373,1715112637453,-629.25,0.00019178,2]
[326568374,1715112637463,-933.26,0.00019178,2]
[326568375,1715112637473,-500.0,0.00019178,2]
[326568376,1715112637483,-1846.43,0.00019178,2]
[326568377,1715112637492,-500.0,0.00019178,2]
[326568378,1715112637502,-500.0,0.00019178,2]
[326568379,1715112637512,-500.0,0.00019178,2]
[326568380,1715112637523,-500.0,0.00019178,2]
[326568381,1715112637533,-500.0,0.00019178,2]
[326568382,1715112637543,-500.0,0.00019178,2]
[326568383,1715112637553,-500.0,0.00019178,2]
[326568384,1715112637562,-764.74,0.00019178,2]
[326568385,1715112637572,-1385.44,0.00019178,2]
[326568386,1715112637582,-500.0,0.00019178,2]
[326568387,1715112637592,-1518.55,0.00019178,2]
[326568389,1715112637602,-500.0,0.00019178,2]
[326568390,1715112637612,-500.0,0.00019178,2]
[326568391,1715112637621,-1534.29,0.00019178,2]
[326568392,1715112637631,-500.0,0.00019178,2]
[326568393,1715112637640,-500.0,0.00019178,2]
[326568394,1715112637650,-500.0,0.00019178,2]
[326568395,1715112637660,-500.0,0.00019178,2]
[326568396,1715112637669,-500.0,0.00019178,2]
[326568397,1715112637682,-995.34,0.00019178,2]
[326568398,1715112637691,-2482.04,0.00019178,2]
[326568399,1715112637701,-500.0,0.00019178,2]
[326568400,1715112637710,-1796.45,0.00019178,2]
[326568401,1715112637721,-500.0,0.00019178,2]
[326568402,1715112637731,-500.0,0.00019178,2]
[326568403,1715112637740,-500.0,0.00019178,2]
[326568404,1715112637753,-1143.63,0.00019178,2]
[326568405,1715112637764,-500.0,0.00019178,2]
[326568406,1715112637775,-1253.68,0.00019178,2]
[326568407,1715112637785,-793.52,0.00019178,2]
[326568408,1715112637795,-790.82,0.00019178,2]
[326568409,1715112637805,-500.0,0.00019178,2]
[326568410,1715112637815,-821.22,0.00019178,2]
[326568411,1715112637825,-766.45,0.00019178,2]
[326568412,1715112637835,-408.21400585,0.00019178,2]
[326568413,1715112637845,-500.0,0.00019178,2]
[326568414,1715112637855,-500.0,0.00019178,2]
[326568415,1715112637865,-1140.07,0.00019178,2]
[326568416,1715112637875,-2261.2,0.00019178,2]
[326568417,1715112637885,-699.33,0.00019178,2]
[326568418,1715112637895,-1639.33,0.00019178,2]
[326568419,1715112637906,-500.0,0.00019178,2]
[326568420,1715112637916,-500.0,0.00019178,2]
[326568421,1715112637926,-708.47,0.00019178,2]
[326568422,1715112637936,-500.0,0.00019178,2]
[326568423,1715112637945,-500.0,0.00019178,2]
[326568424,1715112637955,-7581.08,0.00019178,2]
[326568425,1715112637965,-500.0,0.00019178,2]
[326568426,1715112637975,-500.0,0.00019178,2]
[326568427,1715112637984,-96.58800432,0.00019178,2]
[326568455,1715112638553,-749.70504623,0.00017258,2]
[326568456,1715112638564,-155.0,0.00019176,2]
[326568457,1715112638574,-194.34268049,0.00019176,2]
[326568458,1715112638584,-363.81807592,0.00019176,2]
[326568459,1715112638593,-329.48874457,0.00019176,2]
[326568460,1715112638603,-155.0,0.00019176,2]
[326568461,1715112638613,-162.08193255,0.00019176,2]
[326568462,1715112638622,-90.32409521,0.00019176,2]
[326568463,1715112638645,-65.44180032,0.00019176,2]
[326568464,1715112638656,-1052.05964256,0.00019176,2]
[326568465,1715112638665,-156.71208223,0.00019177,2]
[326568466,1715112638676,-560.71199568,0.00019178,2]
[326568467,1715112638689,-1442.6,0.00019178,2]
[326568468,1715112638700,-1570.85,0.00019178,2]
[326568469,1715112638710,-500.0,0.00019178,2]
[326568470,1715112638721,-952.83,0.00019178,2]
[326568471,1715112638732,-965.64,0.00019178,2]
[326568472,1715112638743,-500.0,0.00019178,2]
[326568473,1715112638753,-500.0,0.00019178,2]
[326568474,1715112638765,-500.0,0.00019178,2]
[326568475,1715112639006,-500.0,0.00019178,2]
[326568476,1715112639016,-500.0,0.00019178,2]
[326568477,1715112639026,-500.0,0.00019178,2]
[326568478,1715112639036,-686.32,0.00019178,2]
[326568479,1715112639046,-701.99,0.00019178,2]
[326568480,1715112639055,-1115.15,0.00019178,2]
[326568481,1715112639065,-1673.46,0.00019178,2]
[326568482,1715112639075,-500.0,0.00019178,2]
[326568483,1715112639086,-500.0,0.00019178,2]
[326568484,1715112639098,-771.11,0.00019178,2]
[326568485,1715112639110,-521.16,0.00019178,2]
[326568486,1715112639120,-628.86,0.00019178,2]
[326568487,1715112639130,-1036.35,0.00019178,2]
[326568489,1715112639141,-500.0,0.00019178,2]
[326568491,1715112639152,-756.07,0.00019178,2]
[326568493,1715112639162,-651.67,0.00019178,2]
[326568495,1715112639172,-500.43,0.00019178,2]
[326568497,1715112639182,-607.71,0.00019178,2]
[326568500,1715112639197,-616.16,0.00019178,2]
[326568502,1715112639208,-2812.26,0.00019178,2]
[326568504,1715112639218,-2456.97,0.00019178,2]
[326568506,1715112639229,-500.0,0.00019178,2]
[326568508,1715112639239,-500.0,0.00019178,2]
[326568510,1715112639251,-330.52213188,0.00019178,2]
[326568513,1715112639266,-169.47786812,0.00019178,2]
[326568515,1715112639277,-264.85282922,0.00019178,2]
[326568517,1715112639290,-235.14717078,0.00019178,2]
[326568519,1715112639300,-914.95,0.00019178,2]
[326568521,1715112639310,-861.82181162,0.00019178,2]
[326568524,1715112639323,-233.38818838,0.00019178,2]
[326568525,1715112639333,-563.44,0.00019178,2]
[326568528,1715112639344,-832.85186279,0.00019178,2]
[326568530,1715112639356,-245.12813721,0.00019178,2]
[326568532,1715112639367,-58.59021852,0.00019178,2]
[326568534,1715112639380,-925.66978148,0.00019178,2]
[326568536,1715112639390,-579.82,0.00019178,2]
[326568538,1715112639401,-500.0,0.00019178,2]
[326568540,1715112639411,-1344.85,0.00019178,2]
[326568543,1715112639422,-756.02,0.00019178,2]
[326568545,1715112639432,-1888.78,0.00019178,2]
[326568547,1715112639443,-1990.06,0.00019178,2]
[326568549,1715112639453,-500.0,0.00019178,2]
[326568551,1715112639464,-500.0,0.00019178,2]
[326568553,1715112639474,-696.89,0.00019178,2]
[326568555,1715112639485,-500.0,0.00019178,2]
[326568557,1715112639496,-1476.96,0.00019178,2]
[326568559,1715112639507,-3186.51,0.00019178,2]
[326568561,1715112639517,-500.0,0.00019178,2]
[326568563,1715112639528,-737.67,0.00019178,2]
[326568565,1715112639538,-500.0,0.00019178,2]
[326568567,1715112639549,-242.19420022,0.00019178,2]
[326568569,1715112639560,-152.69,0.00019178,2]
[326568571,1715112639570,-328.79,0.00019178,2]
[326568573,1715112639580,-454.41,0.00019178,2]
[326568575,1715112639591,-4205.21598924,0.00019352,2]
[326568577,1715112639601,-361.7767812,0.00019352,2]
[326568579,1715112639612,-781.6756597,0.00019451,7]
[326568581,1715112639622,-693.48,0.00019451,2]
[326568583,1715112639633,-452.6847238,0.00019452,2]
[326568585,1715112639644,-500.0,0.00019452,2]
[326568587,1715112639655,-500.0,0.00019452,2]
[326568589,1715112639667,-500.0,0.00019452,2]
[326568591,1715112639678,-500.0,0.00019452,2]
[326568593,1715112639692,-500.0,0.00019452,2]
[326568595,1715112639702,-500.0,0.00019452,2]
[326568598,1715112639712,-500.0,0.00019452,2]
[326568600,1715112639723,-500.0,0.00019452,2]
[326568602,1715112639734,-500.0,0.00019452,2]
[326568604,1715112639745,-500.0,0.00019452,2]
[326568606,1715112639756,-500.0,0.00019452,2]
[326568608,1715112639768,-500.0,0.00019452,2]
[326568610,1715112639778,-500.0,0.00019452,2]
[326568612,1715112639788,-500.0,0.00019452,2]
[326568614,1715112639798,-500.0,0.00019452,2]
[326568616,1715112639808,-500.0,0.00019452,2]
[326568618,1715112639818,-500.0,0.00019452,2]
[326568620,1715112639829,-500.0,0.00019452,2]
[326568622,1715112639839,-500.0,0.00019452,2]
[326568624,1715112639849,-500.0,0.00019452,2]
[326568626,1715112639859,-518.2,0.00019452,2]
[326568628,1715112639870,-500.0,0.00019452,2]
[326568630,1715112639880,-500.0,0.00019452,2]
[326568632,1715112639891,-500.0,0.00019452,2]
[326568634,1715112639901,-500.0,0.00019452,2]
[326568636,1715112639911,-500.0,0.00019452,2]